Workbook

Sheet Biomass Sorghum Budget
A2: You can change the cells highlighted in yellow to match your specific operation. Columns E & F Autopopulate based on these numbers
A4: Biomass Sorghum Production Budget , No-Till, Non-Irrigated
A6: Yield (BDT/Acre) | B6: 7
A8: Establishment | B8: Description | C8: Unit | D8: Quantity | E8: Price | F8: $/acre | G8: $/BDT
A9: Inputs
A10: Land Rent | C10: acre | E10: 0 | F10: =E10 -> 0 | G10: =E10/B6 -> 0
A11: Seed1 | B11: NX4264 | C11: bag | D11: 1 | E11: 225 | F11: =E11/C55 -> 25.71428571 | G11: =F11/B6 -> 3.673469388
A12: Nitrogen2 | B12: 46-0-0 Urea | C12: lbs | D12: 180 | E12: 343 | F12: =(E12/(2000*0.46))*(D12-((D13/0.46)*0.18)) -> 57.62594518 | G12: =F12/B6 -> 8.232277883
A13: Phosphorous2 | B13: 18-46-0 DAP | C13: lbs | D13: 65 | E13: 400 | F13: =(E13/(2000*0.46))*D13 -> 28.26086957 | G13: =F13/B6 -> 4.037267081
A14: Potassium2 | B14: 0-0-60 Potash | C14: lbs | D14: 120 | E14: 378 | F14: =(E14/(2000*0.6))*D14 -> 37.8 | G14: =F14/B6 -> 5.4
A15: Lime3 | C15: ton | D15: 1 | E15: 30 | F15: =(D15*E15)*0.5 -> 15 | G15: =F15/B6 -> 2.142857143
A16: Herbicide | B16: Preplant | C16: qt. | D16: 1 | E16: 4.88 | F16: =D16*E16 -> 4.88 | G16: =F16/B6 -> 0.6971428571
A17: Herbicide-Pre-Emerge | B17: Bicep II Magnum (qts) | C17: qt. | D17: 2.1 | E17: 12.62 | F17: 26.502 | G17: =F17/B6 -> 3.786
A18: Herbicide-Pre-Emerge | B18: Surfactant - COC | D18: 1 | E18: 3.5 | F18: 3.5 | G18: =F18/B6 -> 0.5
A20: Pre Harvest Equipment Operations4
A21: Planting | D21: 1 | E21: 24 | F21: =D21*E21 -> 24 | G21: =F21/B6 -> 3.428571429
A22: Fertilizer Application | D22: 1 | E22: 8 | F22: 8 | G22: =F22/B6 -> 1.142857143
A23: Herbicide Application | D23: 2 | E23: 8.5 | F23: 17 | G23: =F23/B6 -> 2.428571429
E25: Subtotal | F25: =SUM(F10:F23) -> 248.2831005 | G25: =SUM(G10:G23) -> 35.46901435
A27: Harvest Equipment Operations4
A28: Swathing | F28: 22.31 | G28: =F28/B6 -> 3.187142857
A29: Raking | F29: 19.45 | G29: =F29/B6 -> 2.778571429
A30: Baling | F30: 108.72 | G30: =F30/B6 -> 15.53142857
A31: Bale Staging | F31: 44.52 | G31: =F31/B6 -> 6.36
E33: Subtotal | F33: =SUM(F28:F31) -> 195 | G33: =SUM(G28:G31) -> 27.85714286
E35: Total Production Cost | F35: =SUM(F25,F33) -> 443.2831005 | G35: =SUM(G25,G33) -> 63.32615721
B37: Genera Payment ($/BDT) | C37: 90 | E37: Total Revenue | F37: =C37*B6 -> 630
E39: Total Profit | F39: =F37-F35 -> 186.7168995
A40: Footnotes
A41: * BDT = Bone Dry Ton
A42: 1) One 50 lb. bag of seed is expected to plant roughly 8.75 acres. Will vary slightly from year to year based on information from seed label. Seed Rate Multiplier table can be used to ammend this variable.
A44: 2) Enter price per ton from your supplier. For quantity, enter crop requirements. Requirements may vary by soil type.
A45: 3) Assumed application once every four years at 2 tons per acre. Prorated yearly cost provided. Application costs included.
A46: 4) Equipment Operation expenses are based on custom crew rates. If doing this work yourself, rates could be different.
A48: Seed Rate Multiplier
A50: Description | B50: Unit | C50: Quantity
A51: Bag of Seed | B51: lbs | C51: 50
A52: Seeds per lb | C52: 14000
A53: Planting Density | B53: Seeds/ Acre | C53: 80000
A55: Acres per Bag | C55: =(C51*C52)/C53 -> 8.75
A57: Copyright 2020
A58: Genera Inc. | F58: generainc.com/farmers
